fUSD/lending_fUSD_20240720
["ID","MTS","AMOUNT","RATE_DAILY","PERIOD"]
[332728576,1721490633860,-223.951253,0.00013699,2]
[332728577,1721490633871,-151.0,0.00013699,2]
[332728578,1721490633880,-151.0,0.00013699,2]
[332728579,1721490633890,-151.0,0.00013699,2]
[332728580,1721490633899,-151.0,0.00013699,2]
[332728581,1721490633909,-250.0,0.00013699,2]
[332728582,1721490633919,-200.0,0.00013699,2]
[332728583,1721490633929,-2330.68,0.00013699,2]
[332728584,1721490633940,-760.62,0.00013699,2]
[332728585,1721490633950,-151.476481,0.00013699,2]
[332728586,1721490633960,-2644.97,0.00013699,2]
[332728587,1721490633969,-151.984187,0.00013699,2]
[332728588,1721490633979,-151.0,0.00013699,2]
[332728589,1721490633989,-301.999999,0.00013699,2]
[332728590,1721490634000,-2240.43,0.00013699,2]
[332728591,1721490634010,-151.0,0.00013699,2]
[332728592,1721490634019,-151.0,0.00013699,2]
[332728593,1721490634030,-151.0,0.00013699,2]
[332728594,1721490634040,-151.0,0.00013699,2]
[332728595,1721490634049,-155.18522,0.00013699,2]
[332728596,1721490634059,-2751.0,0.00013699,2]
[332728597,1721490634069,-296.382727,0.00013699,2]
[332728598,1721490634079,-151.0,0.00013699,2]
[332728599,1721490634089,-151.0,0.00013699,2]
[332728600,1721490634099,-169.242539,0.00013699,2]
[332728601,1721490634108,-151.0,0.00013699,2]
[332728602,1721490634119,-151.0,0.00013699,2]
[332728603,1721490634128,-279.10159,0.00013699,2]
[332728604,1721490634138,-151.0,0.00013699,2]
[332728605,1721490634147,-279.10159,0.00013699,2]
[332728606,1721490634156,-279.10159,0.00013699,2]
[332728607,1721490634167,-279.10159,0.00013699,2]
[332728608,1721490634177,-279.10159,0.00013699,2]
[332728609,1721490634188,-279.10159,0.00013699,2]
[332728610,1721490634197,-279.10159,0.00013699,2]
[332728611,1721490634207,-279.10159,0.00013699,2]
[332728612,1721490634219,-151.0,0.00013699,2]
[332728613,1721490634228,-151.0,0.00013699,2]
[332728614,1721490634238,-151.0,0.00013699,2]
[332728615,1721490634247,-151.0,0.00013699,2]
[332728616,1721490634256,-151.0,0.00013699,2]
[332728617,1721490634266,-151.0,0.00013699,2]
[332728618,1721490634275,-151.0,0.00013699,2]
[332728619,1721490634284,-151.0,0.00013699,2]
[332728620,1721490634294,-151.0,0.00013699,2]
[332728621,1721490634303,-176.579718,0.00013699,2]
[332728622,1721490634313,-151.0,0.00013699,2]
[332728623,1721490634323,-151.0,0.00013699,2]
[332728624,1721490634333,-151.0,0.00013699,2]
[332728625,1721490634342,-257.738003,0.00013699,2]
[332728626,1721490634352,-200.49365,0.00013699,2]
[332728627,1721490634361,-200.49365,0.00013699,2]
[332728628,1721490634371,-200.49365,0.00013699,2]
[332728629,1721490634380,-200.49365,0.00013699,2]
[332728630,1721490634389,-200.49365,0.00013699,2]
[332728631,1721490634399,-200.49365,0.00013699,2]
[332728632,1721490634408,-200.49365,0.00013699,2]
[332728633,1721490634418,-200.49365,0.00013699,2]
[332728634,1721490634427,-200.49365,0.00013699,2]
[332728635,1721490634439,-200.49365,0.00013699,2]
[332728636,1721490634450,-5047.780796,0.00013699,2]
[332728637,1721490634460,-5047.780796,0.00013699,2]
[332728638,1721490634471,-5047.780796,0.00013699,2]
[332728639,1721490634481,-5047.780796,0.00013699,2]
[332728640,1721490634490,-5047.780796,0.00013699,2]
[332728641,1721490634500,-155.054776,0.00013699,2]
[332728642,1721490634510,-5047.780796,0.00013699,2]
[332728643,1721490634520,-155.054776,0.00013699,2]
[332728644,1721490634530,-5047.780796,0.00013699,2]
[332728645,1721490634540,-155.054776,0.00013699,2]
[332728646,1721490634549,-5047.780796,0.00013699,2]
[332728647,1721490634559,-155.054776,0.00013699,2]
[332728648,1721490634568,-5047.780796,0.00013699,2]
[332728649,1721490634578,-155.054776,0.00013699,2]
[332728650,1721490634588,-261.038677,0.00013699,2]
[332728651,1721490634598,-5047.780796,0.00013699,2]
[332728652,1721490634608,-155.054776,0.00013699,2]
[332728653,1721490634618,-155.054776,0.00013699,2]
[332728654,1721490634628,-155.054776,0.00013699,2]
[332728655,1721490634638,-155.054776,0.00013699,2]
[332728656,1721490634647,-155.054776,0.00013699,2]
[332728657,1721490634657,-151.0,0.00013699,2]
[332728658,1721490634667,-151.0,0.00013699,2]
[332728659,1721490634676,-151.0,0.00013699,2]
[332728660,1721490634686,-151.0,0.00013699,2]
[332728661,1721490634696,-151.0,0.00013699,2]
[332728662,1721490634705,-151.0,0.00013699,2]
[332728663,1721490634716,-151.0,0.00013699,2]
[332728664,1721490634725,-151.0,0.00013699,2]
[332728665,1721490634735,-151.0,0.00013699,2]
[332728666,1721490634744,-151.0,0.00013699,2]
[332728667,1721490634753,-151.0,0.00013699,2]
[332728668,1721490634763,-151.0,0.00013699,2]
[332728669,1721490634772,-151.0,0.00013699,2]
[332728670,1721490634782,-151.0,0.00013699,2]
[332728671,1721490634795,-197.372486,0.00013699,2]
[332728672,1721490634805,-151.0,0.00013699,2]
[332728673,1721490634815,-293.871483,0.00013699,2]
[332728674,1721490634825,-279.10159,0.00013699,2]
[332728675,1721490634835,-279.10159,0.00013699,2]
[332728676,1721490634844,-279.10159,0.00013699,2]
[332728677,1721490634854,-279.10159,0.00013699,2]
[332728678,1721490634863,-279.10159,0.00013699,2]
[332728679,1721490634875,-279.10159,0.00013699,2]
[332728680,1721490634884,-279.10159,0.00013699,2]
[332728681,1721490634895,-279.10159,0.00013699,2]
[332728682,1721490634904,-279.10159,0.00013699,2]
[332728683,1721490634914,-151.0,0.00013699,2]
[332728684,1721490634924,-279.10159,0.00013699,2]
[332728685,1721490634933,-279.10159,0.00013699,2]
[332728686,1721490634943,-279.101582,0.00013699,2]
[332728687,1721490634952,-200.49365,0.00013699,2]
[332728688,1721490634962,-200.49365,0.00013699,2]
[332728689,1721490634971,-200.49365,0.00013699,2]
[332728690,1721490634981,-200.49365,0.00013699,2]
[332728691,1721490634990,-200.49365,0.00013699,2]
[332728692,1721490635000,-200.49365,0.00013699,2]
[332728693,1721490635009,-5047.780796,0.00013699,2]
[332728694,1721490635018,-200.49365,0.00013699,2]
[332728695,1721490635028,-200.49365,0.00013699,2]
[332728696,1721490635037,-200.49365,0.00013699,2]
[332728697,1721490635047,-200.493646,0.00013699,2]
[332728698,1721490635057,-5047.780796,0.00013699,2]
[332728699,1721490635066,-5047.780796,0.00013699,2]
[332728700,1721490635076,-245.03282195,0.00013699,2]
[332728701,1721490635086,-5047.780796,0.00013699,2]
[332728702,1721490635095,-5047.780796,0.00013699,2]
[332728703,1721490635105,-155.054776,0.00013699,2]
[332728704,1721490635115,-155.054776,0.00013699,2]
[332728705,1721490635124,-5047.780796,0.00013699,2]
[332728706,1721490635133,-155.054776,0.00013699,2]
[332728707,1721490635143,-155.054776,0.00013699,2]
[332728708,1721490635153,-155.054776,0.00013699,2]
[332728709,1721490635162,-5047.780796,0.00013699,2]
[332728710,1721490635171,-5047.780796,0.00013699,2]
[332728711,1721490635181,-5047.780796,0.00013699,2]
[332728712,1721490635191,-5047.780806,0.00013699,2]
[332728713,1721490635200,-155.054776,0.00013699,2]
[332728714,1721490635209,-155.054776,0.00013699,2]
[332728715,1721490635219,-155.054776,0.00013699,2]
[332728716,1721490635228,-155.054776,0.00013699,2]
[332728717,1721490635237,-155.054786,0.00013699,2]
[332728718,1721490635247,-151.0,0.00013699,2]
[332728719,1721490635256,-151.0,0.00013699,2]
[332728720,1721490635265,-151.0,0.00013699,2]
[332728721,1721490635275,-230.636278,0.00013699,2]
[332728722,1721490635284,-2000.0,0.000137,2]
[332728723,1721490635294,-483.0080244,0.000137,2]
[332728724,1721490635303,-1000.0,0.00013702,2]
[332728725,1721490635313,-5000.0,0.00013763,2]
[332728726,1721490635322,-1000.0,0.0001378,2]
[332728727,1721490635331,-269.84597142,0.00013799,2]
[332728728,1721490635341,-1502.12711445,0.000138,2]
[332728729,1721490635350,-52138.4294973,0.000138,3]
[332728730,1721490635359,-180.19668508,0.000138,2]
[332728731,1721490635369,-427.32230128,0.000138,2]
[332728732,1721490635378,-5733.71965791,0.000138,2]
[332728733,1721490635388,-2324.21109593,0.000138,2]
[332728734,1721490635397,-1536.87871063,0.00013859,2]
[332728735,1721490635407,-200.41286541,0.0001387,2]
[332728736,1721490635416,-82932.509405,0.0001388,2]
[332728737,1721490636077,-451.92492773,0.0001388,2]
[332728738,1721490636114,-462.53216332,0.0001388,2]
[332728739,1721490636146,-217.97410177,0.00013165,2]
[332728740,1721490636157,-528.47099886,0.0001388,2]
[332728741,1721490636172,-289.46000608,0.0001388,2]
[332728742,1721490636183,-2005.57355483,0.0001388,2]
[332728743,1721490636195,-322.91174239,0.0001388,2]
[332728747,1721490637982,-685.08642589,0.00013295,2]
[332728770,1721490638183,-3662.09205518,0.00013295,2]
[332728772,1721490638194,-151.0,0.00013699,2]
[332728774,1721490638204,-151.0,0.00013699,2]
[332728775,1721490638213,-151.0,0.00013699,2]
[332728777,1721490638222,-4347.17848107,0.00013877,2]
[332728779,1721490638231,-159005.32404812,0.0001388,2]
[332728785,1721490638280,-642.24639663,0.0001388,2]
[332728789,1721490638304,-151.0,0.00013699,2]
[332728791,1721490638314,-1054.15291341,0.0001388,2]
[332728945,1721490639734,-285.99284498,0.00013698,2]
[332728947,1721490639743,-5297.72815254,0.00013698,2]
[332728949,1721490639752,-154.367775,0.00013699,2]
[332728951,1721490639761,-32110.13317672,0.0001388,2]
[332728953,1721490639772,-569.44888,0.0001388,2]
[332728957,1721490639798,-531.2423039,0.0001388,2]
[332728959,1721490639809,-4207.9876383,0.0001388,2]
[332728962,1721490639824,-971.57004158,0.0001388,2]
[332728964,1721490639835,-13872.09019348,0.0001388,2]
[332728969,1721490639884,-2925.4652622,0.0001388,2]
[332728971,1721490639896,-455.92734997,0.0001388,2]
[332728973,1721490639907,-358.56502115,0.0001388,2]
[332728975,1721490639918,-372.3015982,0.0001388,2]
[332728979,1721490639951,-6618.563923,0.0001388,2]
[332728986,1721490640005,-1950.27975375,0.0001388,2]
[332729257,1721490642740,-255667.44220227,0.0001388,2]
[332729275,1721490642907,-1745.585,0.0001388,2]
[332729282,1721490642965,-2796.88342727,0.0001388,2]
[332729588,1721490645713,-621.5072955,0.000138,2]
[332729605,1721490645775,-378.4927045,0.000138,2]
[332729607,1721490645785,-282.76868763,0.00013858,2]
[332729609,1721490645798,-264.08188008,0.00013858,2]
[332729611,1721490645808,-143.51814539,0.00013858,2]
[332729626,1721490645941,-356.48185461,0.00013858,2]
[332729628,1721490645951,-351.31105823,0.00013858,2]
[332729630,1721490645961,-32009.50372486,0.0001388,2]
[332729632,1721490645970,-200.41286541,0.0001389,2]
[332729634,1721490645979,-161.0,0.0001389,2]
[332729636,1721490645989,-158.4181892,0.0001389,2]
[332729638,1721490645998,-578.0,0.0001389,2]
[332729639,1721490646008,-265.60117602,0.00013897,2]
[332729640,1721490646019,-19861.16275999,0.00013897,2]
[332729645,1721490646062,-571.94053383,0.00013897,2]
[332729718,1721490646750,-723.31874969,0.00013897,2]
[332729727,1721490646829,-950.0,0.00013897,2]
[332729729,1721490646841,-450.0,0.00013897,2]
[332730501,1721490655528,1342.7845,0.00012044,2]
[332731199,1721490684298,2609.0,0.000135,5]
[332731201,1721490743689,171.85,0.00010581,2]
[332731202,1721490795499,797.06604498,0.00010581,2]
[332731203,1721490808250,291.09887402,0.00010581,2]
[332731204,1721490886182,626.24,0.00011064,2]
[332731205,1721490907053,7565.77604885,0.00010581,2]
[332731206,1721490911628,796.70213896,0.00010581,2]
[332731207,1721490915754,289.04204054,0.00010581,2]
[332731210,1721491014190,119922.68673646,0.00010581,2]
[332731211,1721491014215,10673.94796086,0.00010581,2]
[332731212,1721491021038,2326.05203914,0.00010581,2]
[332731213,1721491021065,4778.79114212,0.00010581,2]
[332731215,1721491042510,797.06604498,0.00010581,2]
[332731217,1721491114945,167.56,0.00010959,2]
[332731219,1721491202923,150.0,0.00010959,2]
[332731220,1721491203113,150.0,0.00010959,2]
[332731221,1721491203333,150.0,0.00010959,2]
[332731222,1721491203626,150.0,0.00010959,2]
[332731223,1721491203775,150.0,0.00010959,2]
[332731224,1721491203947,150.0,0.00010959,2]
[332731225,1721491204164,150.0,0.00010959,2]
[332731226,1721491204418,150.0,0.00010959,2]
[332731227,1721491204669,150.0,0.00010959,2]
[332731228,1721491204814,150.0,0.00010959,2]
[332731229,1721491205019,150.0,0.00010959,2]
[332731230,1721491205827,150.0,0.00010959,2]
[332731231,1721491205922,150.0,0.00010959,2]
[332731232,1721491206091,150.0,0.00010959,2]
[332731233,1721491209622,150.0,0.00010959,2]
[332731234,1721491210022,150.0,0.00010959,2]
[332731235,1721491210575,150.0,0.00010959,2]
[332731236,1721491210770,150.0,0.00010959,2]
[332731237,1721491210976,150.0,0.00010959,2]
[332731238,1721491211173,150.0,0.00010959,2]
[332731239,1721491211486,150.0,0.00010959,2]
[332731240,1721491211739,150.0,0.00010959,2]
[332731241,1721491211946,150.0,0.00010959,2]
[332731242,1721491212506,150.0,0.00010959,2]
[332731243,1721491212634,150.0,0.00010959,2]
[332731244,1721491212997,150.0,0.00010959,2]
[332731245,1721491213188,150.0,0.00010959,2]
[332731246,1721491213371,150.0,0.00010959,2]
[332731247,1721491213564,150.0,0.00010959,2]
[332731248,1721491213741,150.0,0.00010959,2]
[332731249,1721491213957,150.0,0.00010959,2]
[332731250,1721491214134,150.0,0.00010959,2]
[332731251,1721491214404,150.0,0.00010959,2]
[332731252,1721491214589,188.17963668,0.00010959,2]
[332731253,1721491215519,386.99082141,0.00010959,2]
[332731269,1721491423242,611.7,0.00010261,2]
[332731288,1721491527292,-1000.0,0.00012334,2]
[332731289,1721491527315,-534.72921757,0.00012391,2]
[332731290,1721491527340,-300.0,0.00012441,2]
[332731291,1721491527365,-8165.27078243,0.00012442,2]
[332731292,1721491528304,-4374.92921757,0.00012442,2]
[332731293,1721491528326,-198.79389244,0.0001246,2]
[332731294,1721491528349,-745.07,0.00012485,2]
[332731295,1721491528371,-611.7,0.00012524,2]
[332731296,1721491528395,-174.94180599,0.0001254,2]
[332731297,1721491528418,-1195.41891029,0.0001254,2]
[332731298,1721491528440,-708.16,0.00012561,2]
[332731299,1721491528462,-1236.84,0.00012561,2]
[332731300,1721491528488,-254.09,0.000126,2]
[332731301,1721491528510,-500.05617371,0.00012608,2]
[332731302,1721491528605,-9658.81382629,0.00012608,2]
[332731303,1721491528628,-341.18617371,0.00012613,2]
[332731304,1721491528915,-311.35023993,0.00012613,2]
[332731305,1721491528937,-499.99,0.00012749,2]
[332731306,1721491528960,-1771.65,0.00012749,2]
[332731307,1721491528981,-944.17,0.00012763,2]
[332731308,1721491529002,-150.0,0.00012824,2]
[332731309,1721491529025,-6322.83976007,0.00012825,2]
[332731310,1721491529406,-10000.0,0.00012825,2]
[332731311,1721491529987,-10000.0,0.00012825,2]
[332731312,1721491530957,-10000.0,0.00012825,2]
[332731313,1721491531623,-10000.0,0.00012437,2]
[332731314,1721491532119,-2308.94912659,0.00012437,2]
[332731315,1721491532145,-7691.05087341,0.00012825,2]
[332731316,1721491532533,-10000.0,0.00012825,2]
[332731317,1721491532571,-10000.0,0.00012825,2]
[332731318,1721491532937,-10000.0,0.00012825,2]
[332731319,1721491533246,-10000.0,0.00012825,2]
[332731320,1721491533607,-10000.0,0.00012825,2]
[332731322,1721491535600,4319.15,0.00012785,2]
[332731326,1721491589890,250.0,0.00012773,2]
[332731336,1721491653246,233.4602882,0.00012785,2]
[332731337,1721491660342,206.62,0.00012735,2]
[332731338,1721491662510,4990.7697118,0.00012773,2]
[332731376,1721491831757,-348.9147864,0.00012234,2]
[332731378,1721491832115,-609.86344662,0.00012234,2]
[332731379,1721491832131,-1750.0,0.00012234,2]
[332731380,1721491832141,-3384.65756698,0.00012234,2]
[332731381,1721491832151,-250.0,0.00012755,2]
[332731382,1721491832160,-168.0,0.00012772,2]
[332731383,1721491832169,-150.0,0.00012772,2]
[332731384,1721491832178,-300.0,0.00012772,2]
[332731385,1721491832190,-797.06604498,0.00012773,2]
[332731386,1721491832200,-291.0324454,0.00012773,2]
[332731387,1721491832210,-600.0,0.00012773,2]
[332731388,1721491832219,-53.21859864,0.00012773,2]
[332731389,1721491832281,-128.22515697,0.00012773,2]
[332731390,1721491832291,-300.20011272,0.00012773,2]
[332731391,1721491832300,-870.74837252,0.00012773,2]
[332731392,1721491832309,-276.75787577,0.00012773,2]
[332731393,1721491832320,-10006.75880112,0.00012773,2]
[332731394,1721491832388,-3082.03617125,0.00012773,2]
[332731395,1721491832495,-6690.0,0.00012773,2]
[332731413,1721491837787,-2123.93814826,0.00012773,2]
[332731414,1721491837798,-359.50297614,0.00012773,2]
[332731415,1721491837808,-141.0383563,0.00012855,2]
[332731416,1721491837893,-1113.13910013,0.00012855,2]
[332731417,1721491838000,-2.77347551,0.00012855,2]
[332731418,1721491838010,-486.8307,0.00012997,2]
[332731419,1721491838020,-783.43727178,0.00012997,2]
[332731420,1721491838055,-216.56272822,0.00012997,2]
[332731421,1721491838064,-257.09727178,0.00013087,2]
[332731736,1721491841420,-519.6187161,0.00013087,2]
[332731738,1721491841430,-2383.4527,0.00013097,2]
[332731740,1721491841440,-82798.2002,0.00013097,2]
[332731742,1721491841449,-584.49096916,0.00013398,2]
[332731744,1721491841459,-439.20960258,0.00013479,2]
[332731746,1721491841469,-227.92586719,0.00013479,2]
[332731748,1721491841478,-1073.46,0.00013489,2]
[332731750,1721491841488,-236.13198388,0.00013489,2]
[332731752,1721491841497,-363.65926823,0.0001351,2]
[332731754,1721491841507,-1253.0,0.00013515,2]
[332731756,1721491841517,-831.172,0.00013515,2]
[332731758,1721491841526,-286.765,0.00013515,2]
[332731761,1721491841537,-450.0,0.00013515,2]
[332731763,1721491841546,-543.769,0.00013515,2]
[332731765,1721491841555,-620.0,0.00013515,2]
[332731767,1721491841565,-164.325,0.00013515,2]
[332731769,1721491841574,-549.0,0.00013515,2]
[332731771,1721491841583,-2421.815,0.00013515,2]
[332731773,1721491841594,-150.438,0.00013515,2]
[332731775,1721491841604,-1993.0,0.00013515,2]
[332731777,1721491841613,-3282.0,0.00013515,2]
[332731779,1721491841622,-173.43,0.0001354,2]
[332731781,1721491841631,-9062.7068,0.000136,2]
[332731783,1721491841641,-160.22,0.00013699,2]
[332731785,1721491841651,-250.0,0.00013699,2]
[332731787,1721491841660,-2751.0,0.00013699,2]
[332731789,1721491841669,-2114.9,0.00013699,2]
[332731791,1721491841679,-18250.8401,0.000137,2]
[332731793,1721491841688,-252.191,0.00013702,2]
[332731795,1721491841697,-30773.45228769,0.00013702,2]
[332731800,1721491841736,-2342.34033694,0.00013702,2]
[332732063,1721491845901,-524.89390464,0.00013702,2]
[332732078,1721491846062,-4696.31347073,0.00013702,2]
[332732080,1721491846072,-4497.95389085,0.00013702,2]
[332732142,1721491890216,11491.0,0.000135,5]
[332732148,1721491951635,572.66,0.00010972,2]
[332732150,1721491985569,578.20564769,0.00010972,2]
[332732152,1721491987380,300.20011272,0.00010972,2]
[332732153,1721491987488,757.59814731,0.00010972,2]
[332732154,1721491994921,300.20011272,0.00010972,2]
[332732203,1721492420452,-250.0,0.00012749,2]
[332732204,1721492420492,-181.79,0.00012788,2]
[332732205,1721492420516,-1000.0,0.00012879,2]
[332732206,1721492420538,-1226.8607,0.00012997,2]
[332732207,1721492420559,-534.72921757,0.00013,2]
[332732208,1721492420579,-179.35015521,0.00013133,2]
[332732209,1721492420601,-572.66,0.00013236,2]
[332732210,1721492420621,-214.651904,0.00013493,2]
[332732211,1721492420641,-254.48154078,0.00013499,2]
[332732212,1721492424155,132.47648244,0.00013499,2]
[332732217,1721492450712,-1133.69017454,0.00013499,2]
[332732218,1721492450738,-300.0,0.00013598,2]
[332732219,1721492450761,-6502.6672,0.00013599,2]
[332732220,1721492450783,-1225.9273225,0.00013648,2]
[332732221,1721492450808,-837.71530296,0.0001367,2]
[332732222,1721492451159,-10000.0,0.0001367,2]
[332732223,1721492452413,-242.70193871,0.00013299,2]
[332732224,1721492452439,-9757.29806129,0.0001367,2]
[332732229,1721492469448,-7486.53896382,0.0001367,2]
[332732230,1721492469470,-617.8216,0.0001369,2]
[332732231,1721492469494,-150.0,0.0001369,2]
[332732232,1721492469516,-150.99,0.0001369,2]
[332732233,1721492469539,-1388.96164188,0.00013698,2]
[332732234,1721492469563,-205.6877943,0.00013698,2]
[332732249,1721492562855,515.39,0.00010992,2]
[332732295,1721492907915,798.16396892,0.00010992,2]
[332732340,1721493032261,-242.95,0.00012779,2]
[332732341,1721493032270,-252.34754678,0.00012841,2]
[332732342,1721493032281,-353.51342,0.00012841,2]
[332732343,1721493032292,-394.13903322,0.00012841,2]
[332732344,1721493032302,-453.07345125,0.00012924,2]
[332732358,1721493038069,-81.65576632,0.00012924,2]
[332732359,1721493038079,-979.55417132,0.0001305,2]
[332732360,1721493038088,-293.11135528,0.00013165,2]
[332732361,1721493038097,-435.87552621,0.00013199,2]
[332732362,1721493038159,-759.54338408,0.00013199,2]
[332732363,1721493038168,-515.39,0.00013256,2]
[332732364,1721493038177,-2385.98581592,0.00013283,2]
[332732365,1721493038207,-1376.10298521,0.00013283,2]
[332732546,1721493040083,-670.30794,0.00013283,2]
[332732569,1721493040293,-2342.2784628,0.00013283,2]
[332732571,1721493040305,-1536.7580933,0.00013283,2]
[332732854,1721493043220,-457.46955249,0.00013283,2]
[332732855,1721493043232,-1777.28742832,0.00013283,2]
[332732856,1721493043244,-4905.54952999,0.00013283,2]
[332732857,1721493043255,-734.85127068,0.00013303,2]
[332732858,1721493043264,-1185.83774329,0.00013303,2]
[332732859,1721493043273,-123.98350981,0.0001331,2]
[332732861,1721493043333,-285.91467724,0.0001331,2]
[332732862,1721493043343,-599.60667054,0.0001331,2]
[332732863,1721493043353,-679.34166426,0.00013323,2]
[332732864,1721493043362,-155.0,0.00013323,2]
[332732865,1721493043373,-155.0,0.00013323,2]
[332732866,1721493043382,-599.14243279,0.00013499,2]
[332732867,1721493043392,-2552.9730654,0.0001358,2]
[332732868,1721493043401,-160.13669643,0.00013648,2]
[332732869,1721493043412,-256.341017,0.00013648,2]
[332732870,1721493043422,-155.20847491,0.0001367,2]
[332732871,1721493043431,-158.57970611,0.0001367,2]
[332732872,1721493043440,-156.46322794,0.0001367,2]
[332732873,1721493043450,-226.25339825,0.00013698,2]
[332732874,1721493043459,-317.56043887,0.00013698,2]
[332732875,1721493043468,-281.33108426,0.00013698,2]
[332732876,1721493043478,-218.4424432,0.00013698,2]
[332732877,1721493043487,-263.86139089,0.00013698,2]
[332732878,1721493043497,-250.0,0.00013699,2]
[332732879,1721493043508,-2751.0,0.00013699,2]
[332732880,1721493043517,-1057.45,0.00013699,2]
[332732881,1721493043526,-539.02654818,0.00013699,2]
[332732882,1721493043536,-539.02654818,0.00013699,2]
[332732883,1721493043545,-456.8105,0.000137,2]
[332732884,1721493043555,-2000.0,0.00013702,2]
[332732885,1721493043565,-200.0,0.00013702,2]
[332732886,1721493043577,-1387.79070555,0.00013702,2]
[332732929,1721493046894,-612.20929445,0.00013702,2]
[332732930,1721493046905,-200.0,0.00013702,2]
[332732931,1721493046915,-2000.0,0.00013702,2]
[332732932,1721493046924,-3000.0,0.00013702,2]
[332732933,1721493046934,-38337.0,0.00013718,2]
[332732934,1721493046943,-77563.0,0.00013761,2]
[332732935,1721493046953,-1000.0,0.00013788,2]
[332732936,1721493046964,-155.0,0.00013789,2]
[332732937,1721493046973,-445.0,0.0001379,2]
[332732938,1721493046983,-150.0,0.0001379,2]
[332732939,1721493046993,-450.0,0.0001379,2]
[332732940,1721493047003,-810.0,0.0001379,2]
[332732941,1721493047012,-620.0,0.0001379,2]
[332732942,1721493047021,-549.0,0.0001379,2]
[332732943,1721493047030,-150.0,0.0001379,2]
[332732944,1721493047039,-2381.0,0.0001379,2]
[332732945,1721493047049,-1993.0,0.0001379,2]
[332732946,1721493047058,-3282.0,0.0001379,2]
[332732947,1721493047067,-75.67094003,0.0001379,2]
[332732948,1721493047079,-74.32905997,0.0001379,2]
[332732949,1721493047088,-9678.82918029,0.0001379,2]
[332732950,1721493047205,-436.81,0.0001379,2]
[332732951,1721493047217,-4744.48581971,0.0001379,2]
[332732952,1721493047226,-1121.894,0.0001379,2]
[332732953,1721493047236,-5825.0,0.0001379,2]
[332732954,1721493047246,-5156.725,0.0001379,2]
[332732955,1721493047257,-1253.0,0.0001379,2]
[332732956,1721493047266,-367.814,0.0001379,2]
[332732957,1721493047275,-315.41153654,0.0001379,2]
[332732958,1721493047286,-1513.58846346,0.0001379,2]
[332732959,1721493047296,-248.809,0.0001379,2]
[332732960,1721493047306,-1668.0,0.0001379,2]
[332732961,1721493047315,-1201.0,0.0001379,2]
[332732962,1721493047325,-16007.2787056,0.0001379,2]
[332732963,1721493086741,463.85,0.00010976,2]
[332732981,1721493250872,300.0,0.000133,4]
[332732982,1721493252618,700.0,0.000134,4]
[332732983,1721493253206,11494.0,0.000134,5]
[332732984,1721493254667,1100.0,0.000135,4]
[332732985,1721493256797,1500.0,0.000136,4]
[332732986,1721493258874,1900.0,0.000137,5]
[332732987,1721493261492,300.0,0.000138,5]
[332732988,1721493263167,300.0,0.000139,5]
[332732990,1721493286189,11494.0,0.000134,5]
[332732991,1721493317654,11428.0,0.000134,5]
[332733040,1721493769959,503.79,0.00010739,2]
[332733087,1721494232222,-237.73772635,0.00012527,2]
[332733088,1721494232239,-326.58551908,0.00012527,2]
[332733089,1721494232248,-397.0,0.00012626,2]
[332733090,1721494232258,-947.11451993,0.00012627,2]
[332733091,1721494232270,-52.88548007,0.00012627,2]
[332733092,1721494232281,-250.0,0.00012628,2]
[332733093,1721494232290,-188.3,0.00012633,2]
[332733094,1721494232300,-155.21687969,0.00012681,2]
[332733095,1721494232310,-395.82,0.00012684,2]